fUSD/lending_fUSD_20250630
["ID","MTS","AMOUNT","RATE_DAILY","PERIOD"]
[368683317,1751295865313,524.84868896,0.00027397,120]
[368683320,1751295915813,150.0,0.00012575,2]
[368683321,1751295915904,150.0,0.00012575,2]
[368683322,1751295917021,201.21217233,0.00012575,2]
[368683323,1751295920915,246.99820395,0.00012575,2]
[368683324,1751295922942,277.65916503,0.00012575,2]
[368683326,1751295926420,215.89028994,0.00012575,2]
[368683327,1751295931419,279.31709199,0.00012575,2]
[368683783,1751295991315,1982.63,0.00012724,2]
[368684121,1751296088706,260.2919633,0.00013032,2]
[368684122,1751296090984,1015.88,0.00012755,2]
[368684123,1751296209057,161.34,0.00012806,2]
[368684124,1751296209366,161.34,0.00012812,2]
[368684125,1751296209538,161.34,0.00012818,2]
[368684126,1751296209731,161.34,0.00012823,2]
[368684127,1751296213666,161.34,0.00012829,2]
[368684128,1751296213954,161.34,0.00012835,2]
[368684129,1751296214172,161.34,0.00012841,2]
[368684130,1751296214383,161.34,0.00012847,2]
[368684131,1751296214800,161.34,0.00012852,2]
[368684132,1751296215020,161.34,0.00012858,2]
[368684133,1751296215236,161.34,0.00012864,2]
[368684134,1751296215447,161.34,0.0001287,2]
[368684143,1751296232041,-250.0,0.00013124,2]
[368684144,1751296232052,-300.0,0.00013124,2]
[368684145,1751296232061,-300.0,0.00013124,2]
[368684146,1751296232071,-150.0,0.00013274,2]
[368684147,1751296232081,-207.4,0.00013293,2]
[368684148,1751296232091,-260.29196329,0.0001341,2]
[368684149,1751296232101,-489.05631478,0.00013595,2]
[368684150,1751296232111,-719.0,0.00013674,2]
[368684151,1751296232121,-753.0,0.00013674,2]
[368684152,1751296232131,-150.0,0.00013691,2]
[368684153,1751296232142,-300.0,0.00013691,2]
[368684154,1751296232151,-1200.0,0.00013691,2]
[368684155,1751296232161,-151.0,0.00013692,2]
[368684156,1751296232171,-151.0,0.00013692,2]
[368684157,1751296232181,-151.0,0.00013692,2]
[368684158,1751296232191,-151.0,0.00013692,2]
[368684159,1751296232201,-1000.0,0.00013692,2]
[368684160,1751296232212,-151.0,0.00013692,2]
[368684161,1751296232222,-636.99495754,0.00013692,2]
[368684162,1751296232232,-151.0,0.00013692,2]
[368684163,1751296232242,-151.0,0.00013692,2]
[368684164,1751296232251,-151.0,0.00013692,2]
[368684165,1751296232262,-151.0,0.00013692,2]
[368684166,1751296232272,-668.65185757,0.00013692,2]
[368684167,1751296232283,-151.0,0.00013692,2]
[368684168,1751296232293,-300.0,0.00013692,2]
[368684169,1751296232303,-151.0,0.00013692,2]
[368684170,1751296232313,-300.0,0.00013692,2]
[368684171,1751296232322,-300.0,0.00013692,2]
[368684172,1751296232332,-300.0,0.00013692,2]
[368684173,1751296232341,-300.0,0.00013692,2]
[368684174,1751296232350,-327.94288873,0.00013692,2]
[368684175,1751296232360,-151.0,0.00013692,2]
[368684177,1751296232370,-202.43536349,0.00013692,2]
[368684179,1751296232379,-500.0,0.00013692,2]
[368684180,1751296232388,-500.0,0.00013692,2]
[368684181,1751296232398,-500.0,0.00013692,2]
[368684182,1751296232407,-500.0,0.00013692,2]
[368684183,1751296232419,-500.0,0.00013692,2]
[368684184,1751296232427,-500.0,0.00013692,2]
[368684185,1751296232437,-500.0,0.00013692,2]
[368684186,1751296232445,-500.0,0.00013692,2]
[368684187,1751296232454,-500.0,0.00013692,2]
[368684188,1751296232462,-300.0,0.00013692,2]
[368684189,1751296232470,-300.0,0.00013692,2]
[368684190,1751296232478,-300.0,0.00013692,2]
[368684191,1751296232487,-300.0,0.00013692,2]
[368684192,1751296232496,-300.0,0.00013692,2]
[368684193,1751296232506,-300.0,0.00013692,2]
[368684194,1751296232515,-300.0,0.00013692,2]
[368684195,1751296232524,-300.0,0.00013692,2]
[368684196,1751296232534,-300.0,0.00013692,2]
[368684197,1751296232545,-448.76221336,0.00013692,2]
[368684199,1751296232554,-717.0,0.00013696,2]
[368684200,1751296232563,-311.0,0.00013696,2]
[368684201,1751296232573,-187.96719656,0.00013696,2]
[368684202,1751296232583,-552.67,0.00013699,2]
[368684203,1751296232592,-171.26,0.000137,2]
[368684204,1751296232602,-456.36,0.000137,2]
[368684205,1751296232611,-362.0,0.000137,2]
[368684207,1751296232621,-234.0,0.000137,2]
[368684209,1751296232630,-389.0,0.000137,2]
[368684211,1751296232640,-150.0,0.000137,2]
[368684214,1751296232650,-150.99,0.000137,2]
[368684216,1751296232659,-709.81,0.000137,2]
[368684220,1751296232668,-170.66,0.000137,2]
[368684224,1751296232678,-620.07,0.000137,2]
[368684227,1751296232687,-910.92,0.000137,2]
[368684229,1751296232696,-1597.29,0.000137,2]
[368684231,1751296232705,-150.0,0.000137,2]
[368684233,1751296232715,-150.0,0.00013715,2]
[368684235,1751296232724,-156.455654,0.00013717,2]
[368684237,1751296232734,-150.0,0.00013719,2]
[368684239,1751296232744,-150.0,0.0001372,2]
[368684240,1751296232754,-150.0,0.0001372,2]
[368684242,1751296232763,-150.0,0.00013724,2]
[368684244,1751296232774,-150.0,0.00013726,2]
[368684246,1751296232784,-150.0,0.0001373,2]
[368684248,1751296232794,-150.0,0.00013732,2]
[368684250,1751296232804,-150.0,0.00013736,2]
[368684252,1751296232813,-150.0,0.00013737,2]
[368684254,1751296232822,-150.0,0.00013738,2]
[368684256,1751296232831,-150.0,0.00013739,2]
[368684257,1751296232841,-150.0,0.00013743,2]
[368684258,1751296232851,-150.0,0.00013748,2]
[368684259,1751296232867,-150.0,0.0001375,2]
[368684260,1751296232877,-150.0,0.00013755,2]
[368684261,1751296232887,-150.0,0.00013757,2]
[368684262,1751296232898,-150.0,0.00013767,2]
[368684264,1751296232907,-150.0,0.0001377,2]
[368684266,1751296232917,-150.0,0.0001377,2]
[368684268,1751296232927,-150.0,0.00013773,2]
[368684269,1751296232937,-311.0,0.00013773,2]
[368684271,1751296232947,-275.0,0.00013773,2]
[368684273,1751296232957,-150.0,0.00013774,2]
[368684275,1751296232966,-150.0,0.00013775,2]
[368684277,1751296232975,-150.0,0.00013781,2]
[368684279,1751296232985,-150.0,0.00013783,2]
[368684281,1751296232994,-150.0,0.00013784,2]
[368684283,1751296233004,-150.0,0.00013786,2]
[368684285,1751296233013,-260.29196329,0.00013787,2]
[368684287,1751296233023,-561.90648176,0.00013792,2]
[368684289,1751296233033,-1299.34260265,0.00013792,2]
[368684291,1751296233042,-150.0,0.00013792,2]
[368684293,1751296233052,-150.0,0.00013797,2]
[368684295,1751296233062,-651.76,0.000138,2]
[368684297,1751296233072,-337.44,0.000138,2]
[368684299,1751296233082,-789.96,0.000138,2]
[368684301,1751296233092,-150.0,0.000138,2]
[368684303,1751296233101,-799.59,0.000138,2]
[368684305,1751296233113,-150.0,0.00013803,2]
[368684307,1751296233123,-1299.34260261,0.00013804,2]
[368684309,1751296233132,-150.0,0.00013807,2]
[368684311,1751296233142,-150.0,0.00013812,2]
[368684312,1751296233152,-150.0,0.00013814,2]
[368684313,1751296233161,-150.0,0.00013814,2]
[368684314,1751296233171,-1299.34260261,0.00013816,2]
[368684315,1751296233181,-150.0,0.00013818,2]
[368684316,1751296233191,-150.0,0.00013819,2]
[368684317,1751296233203,-150.0,0.00013821,2]
[368684318,1751296233212,-150.0,0.00013823,2]
[368684319,1751296233222,-150.0,0.00013824,2]
[368684320,1751296233232,-150.0,0.00013825,2]
[368684321,1751296233243,-150.0,0.00013826,2]
[368684322,1751296233253,-150.0,0.00013826,2]
[368684323,1751296233263,-1299.34260261,0.00013828,2]
[368684324,1751296233274,-150.0,0.00013829,2]
[368684325,1751296233284,-150.0,0.00013834,2]
[368684326,1751296233294,-150.0,0.00013835,2]
[368684327,1751296233304,-150.0,0.00013839,2]
[368684328,1751296233315,-1299.34260261,0.0001384,2]
[368684329,1751296233327,-150.0,0.0001384,2]
[368684330,1751296233337,-150.0,0.00013843,2]
[368684331,1751296233348,-150.0,0.00013847,2]
[368684332,1751296233358,-150.0,0.00013848,2]
[368684333,1751296233371,-240.1516,0.0001385,2]
[368684334,1751296233382,-1299.34260261,0.00013852,2]
[368684335,1751296233392,-150.0,0.00013853,2]
[368684336,1751296233401,-150.0,0.00013858,2]
[368684337,1751296233412,-1299.34260261,0.00013864,2]
[368684338,1751296233422,-150.0,0.00013866,2]
[368684339,1751296233431,-150.0,0.00013867,2]
[368684340,1751296233441,-150.0,0.00013867,2]
[368684341,1751296233450,-150.0,0.0001387,2]
[368684342,1751296233461,-150.0,0.00013871,2]
[368684343,1751296233470,-150.0,0.00013872,2]
[368684344,1751296233480,-150.0,0.00013873,2]
[368684345,1751296233490,-1299.34260261,0.00013876,2]
[368684346,1751296233499,-150.0,0.00013881,2]
[368684347,1751296233509,-200.0,0.00013883,2]
[368684348,1751296233518,-365.8340876,0.00013886,2]
[368684349,1751296233528,-150.0,0.00013886,2]
[368684350,1751296233538,-172.23610946,0.00013887,2]
[368684351,1751296233547,-869.032,0.00013887,2]
[368684352,1751296233558,-500.0,0.00013887,2]
[368684353,1751296233568,-36219.0771,0.00013887,2]
[368684354,1751296233577,-1000.0,0.00013887,2]
[368684355,1751296233587,-5000.0,0.00013887,2]
[368684356,1751296233597,-500.0,0.00013888,2]
[368684357,1751296233607,-500.0,0.00013888,2]
[368684358,1751296233618,-500.0,0.00013888,2]
[368684359,1751296233628,-459.03558565,0.00013888,2]
[368684360,1751296233638,-500.0,0.00013888,2]
[368684361,1751296233648,-505.56598332,0.00013888,2]
[368684362,1751296233658,-420.87249344,0.00013888,2]
[368684363,1751296233667,-365.83408751,0.00013888,2]
[368684364,1751296233677,-1299.34260261,0.00013888,2]
[368684365,1751296233687,-490.0,0.00013888,2]
[368684366,1751296233697,-490.0,0.00013888,2]
[368684367,1751296233707,-1027.53,0.00013888,2]
[368684368,1751296233717,-490.92212399,0.00013888,2]
[368684369,1751296233727,-1095.91,0.00013888,2]
[368684370,1751296233738,-168205.42918091,0.00013889,2]
[368684371,1751296233748,-365.83408751,0.00013889,2]
[368684372,1751296233758,-150.0,0.0001389,2]
[368684373,1751296233768,-365.83408751,0.00013891,2]
[368684374,1751296233779,-365.83408751,0.00013892,2]
[368684375,1751296233789,-365.83408751,0.00013894,2]
[368684376,1751296233799,-150.0,0.00013894,2]
[368684377,1751296233809,-365.83408751,0.00013895,2]
[368684378,1751296233819,-150.0,0.00013896,2]
[368684379,1751296233831,-365.83408751,0.00013897,2]
[368684380,1751296233840,-150.0,0.00013897,2]
[368684381,1751296233850,-150.0,0.00013898,2]
[368684382,1751296233864,-365.83408751,0.00013898,2]
[368684383,1751296233875,-217.2082254,0.00013899,2]
[368684384,1751296233884,-359.0,0.00013899,2]
[368684385,1751296233894,-490.0,0.00013899,2]
[368684386,1751296233904,-490.0,0.00013899,2]
[368684387,1751296233914,-490.0,0.00013899,2]
[368684388,1751296233924,-490.0,0.00013899,2]
[368684389,1751296233933,-1137.9,0.00013899,2]
[368684390,1751296233943,-838.45,0.00013899,2]
[368684391,1751296233954,-490.0,0.00013899,2]
[368684392,1751296233963,-490.0,0.00013899,2]
[368684393,1751296233973,-490.0,0.00013899,2]
[368684394,1751296233983,-2520.71,0.00013899,2]
[368684395,1751296233993,-1160.64,0.00013899,2]
[368684396,1751296234003,-862.56,0.00013899,2]
[368684397,1751296234012,-490.0,0.00013899,2]
[368684398,1751296234022,-1004.66,0.00013899,2]
[368684399,1751296234032,-490.0,0.00013899,2]
[368684400,1751296234041,-999.52,0.00013899,2]
[368684401,1751296234051,-847.32,0.00013899,2]
[368684402,1751296234061,-490.0,0.00013899,2]
[368684403,1751296234071,-1260.04,0.00013899,2]
[368684404,1751296234081,-910.42,0.00013899,2]
[368684405,1751296234090,-638.16,0.00013899,2]
[368684406,1751296234100,-870.02,0.00013899,2]
[368684407,1751296234110,-150.0,0.00013899,2]
[368684408,1751296234119,-4622.46,0.00013899,2]
[368684409,1751296234129,-490.0,0.00013899,2]
[368684410,1751296234139,-1085.41,0.00013899,2]
[368684411,1751296234148,-490.0,0.00013899,2]
[368684412,1751296234159,-635.07,0.00013899,2]
[368684413,1751296234169,-490.0,0.00013899,2]
[368684414,1751296234179,-365.83408751,0.000139,2]
[368684415,1751296234188,-1299.34260261,0.000139,2]
[368684416,1751296234498,-165.83286365,0.000139,2]
[368684417,1751296234521,-4037.92167712,0.000139,2]
[368684418,1751296234531,-150.0,0.00013903,2]
[368684419,1751296234541,-150.0,0.00013906,2]
[368684420,1751296234550,-150.0,0.00013907,2]
[368684421,1751296234560,-150.0,0.00013908,2]
[368684422,1751296234569,-150.0,0.00013908,2]
[368684423,1751296234578,-150.0,0.00013918,2]
[368684424,1751296234587,-510.0,0.00013927,2]
[368684425,1751296234597,-150.0,0.00013928,2]
[368684426,1751296234606,-150.0,0.00013928,2]
[368684427,1751296234617,-150.0,0.0001393,2]
[368684428,1751296234626,-150.0,0.00013932,2]
[368684429,1751296234635,-150.0,0.00013932,2]
[368684430,1751296234644,-150.0,0.00013932,2]
[368684431,1751296234654,-150.0,0.00013933,2]
[368684432,1751296234663,-150.0,0.00013933,2]
[368684433,1751296234672,-150.0,0.00013934,2]
[368684434,1751296234682,-150.0,0.00013937,2]
[368684435,1751296234691,-150.0,0.0001394,2]
[368684436,1751296234700,-150.0,0.00013945,2]
[368684437,1751296234709,-150.0,0.00013949,2]
[368684438,1751296234719,-150.0,0.00013953,2]
[368684439,1751296234728,-150.0,0.00013954,2]
[368684440,1751296234738,-150.0,0.00013954,2]
[368684441,1751296234747,-150.0,0.0001396,2]
[368684442,1751296234757,-150.0,0.00013965,2]
[368684443,1751296234767,-150.0,0.00013966,2]
[368684444,1751296234776,-150.0,0.00013968,2]
[368684445,1751296234786,-150.0,0.00013968,2]
[368684446,1751296234795,-150.0,0.00013971,2]
[368684447,1751296234805,-150.0,0.00013972,2]
[368684448,1751296234814,-500.0,0.00013973,2]
[368684449,1751296234824,-500.0,0.00013973,2]
[368684450,1751296234833,-500.0,0.00013973,2]
[368684451,1751296234842,-320.28128886,0.00013973,2]
[368684452,1751296234851,-500.0,0.00013973,2]
[368684453,1751296234861,-524.08949999,0.00013973,2]
[368684454,1751296234874,-167.48584669,0.00013973,2]
[368684455,1751296234883,-223.39798184,0.00013973,2]
[368684456,1751296234893,-500.0,0.00013973,2]
[368684457,1751296234902,-500.0,0.00013973,2]
[368684458,1751296234912,-555.39650965,0.00013973,2]
[368684459,1751296234922,-485.25583763,0.00013973,2]
[368684460,1751296234931,-519.64748571,0.00013973,2]
[368684461,1751296234942,-500.40790437,0.00013973,2]
[368684462,1751296234952,-500.0,0.00013973,2]
[368684463,1751296234961,-500.88288975,0.00013973,2]
[368684464,1751296234971,-500.0,0.00013973,2]
[368684465,1751296234980,-500.0,0.00013973,2]
[368684466,1751296234990,-356.02662654,0.00013975,2]
[368684467,1751296234999,-209.21711344,0.00013977,2]
[368684468,1751296235009,-490.0,0.00013979,2]
[368684469,1751296235019,-1391.85,0.00013979,2]
[368684470,1751296235029,-490.0,0.00013979,2]
[368684471,1751296235038,-601.5,0.00013979,2]
[368684472,1751296235048,-2676.37,0.00013979,2]
[368684473,1751296235058,-1329.02,0.00013979,2]
[368684474,1751296235067,-2901.63672,0.00013979,2]
[368684475,1751296235077,-3935.37,0.00013979,2]
[368684476,1751296235087,-490.0,0.00013979,2]
[368684477,1751296235096,-3169.168474,0.00013979,2]
[368684478,1751296235106,-1389.28,0.00013979,2]
[368684479,1751296235115,-2887.777472,0.00013979,2]
[368684480,1751296235125,-157.60867,0.00013979,2]
[368684481,1751296235134,-350.964484,0.00013979,2]
[368684482,1751296235144,-1291.75,0.00013979,2]
[368684483,1751296235154,-155.10149,0.00013979,2]
[368684484,1751296235163,-944.64,0.00013979,2]
[368684485,1751296235173,-1416.31,0.00013979,2]
[368684486,1751296235183,-6190.11,0.00013979,2]
[368684487,1751296235192,-2767.45341,0.00013979,2]
[368684488,1751296235202,-1291.82,0.00013979,2]
[368684489,1751296235211,-1554.19,0.00013979,2]
[368684490,1751296235220,-641.89,0.00013979,2]
[368684491,1751296235230,-1818.53,0.00013979,2]
[368684492,1751296235240,-1372.37,0.00013979,2]
[368684493,1751296235249,-777.68,0.00013979,2]
[368684494,1751296235258,-8886.62,0.00013979,2]
[368684495,1751296235268,-591.78,0.00013979,2]
[368684496,1751296235278,-4649.19,0.00013979,2]
[368684497,1751296235288,-150.0,0.00013981,2]
[368684498,1751296235298,-150.0,0.00013982,2]
[368684499,1751296235307,-150.0,0.00013984,2]
[368684500,1751296235317,-155.195,0.00013985,2]
[368684501,1751296235326,-500.0,0.00013985,2]
[368684502,1751296235336,-500.0,0.00013985,2]
[368684503,1751296235345,-606.12691655,0.00013985,2]
[368684504,1751296235354,-500.0,0.00013985,2]
[368684505,1751296235364,-420.77833966,0.00013985,2]
[368684506,1751296235373,-490.0,0.00013986,2]
[368684507,1751296235383,-490.0,0.00013986,2]
[368684508,1751296235392,-772.86,0.00013986,2]
[368684509,1751296235402,-547.44,0.00013986,2]
[368684510,1751296235411,-490.0,0.00013986,2]
[368684511,1751296235420,-404.3999992,0.00013986,2]
[368684512,1751296235430,-490.0,0.00013986,2]
[368684513,1751296235440,-490.0,0.00013986,2]
[368684514,1751296235449,-490.0,0.00013986,2]
[368684515,1751296235458,-490.0,0.00013986,2]
[368684516,1751296235468,-695.85,0.00013986,2]
[368684517,1751296235477,-512.75,0.00013986,2]
[368684518,1751296235487,-734.88,0.00013986,2]
[368684519,1751296235496,-723.01,0.00013986,2]
[368684520,1751296235506,-490.0,0.00013986,2]
[368684521,1751296235515,-1651.68,0.00013986,2]
[368684522,1751296235525,-490.0,0.00013986,2]
[368684523,1751296235534,-664.95,0.00013986,2]
[368684524,1751296235544,-196.62388524,0.00013986,2]
[368684525,1751296235553,-490.0,0.00013986,2]
[368684526,1751296235562,-490.0,0.00013986,2]
[368684527,1751296235572,-490.0,0.00013986,2]
[368684528,1751296235582,-490.0,0.00013986,2]
[368684529,1751296235591,-490.0,0.00013986,2]
[368684530,1751296235601,-490.0,0.00013986,2]
[368684531,1751296235610,-1343.09,0.00013986,2]
[368684532,1751296235619,-490.0,0.00013986,2]
[368684533,1751296235629,-490.0,0.00013986,2]
[368684534,1751296235638,-698.14,0.00013986,2]
[368684535,1751296235648,-490.0,0.00013986,2]
[368684536,1751296235658,-490.0,0.00013986,2]
[368684537,1751296235667,-490.0,0.00013986,2]
[368684538,1751296235677,-469.18774223,0.00013986,2]
[368684539,1751296235686,-670.03,0.00013986,2]
[368684540,1751296235695,-490.0,0.00013986,2]
[368684541,1751296235706,-602.95,0.00013986,2]
[368684542,1751296235715,-506.25,0.00013986,2]
[368684543,1751296235725,-490.0,0.00013986,2]
[368684544,1751296235734,-490.0,0.00013986,2]
[368684545,1751296235743,-490.0,0.00013986,2]
[368684546,1751296235752,-955.63,0.00013986,2]
[368684547,1751296235762,-490.0,0.00013986,2]
[368684548,1751296235772,-490.0,0.00013986,2]
[368684549,1751296235781,-490.0,0.00013986,2]
[368684550,1751296235791,-1291.52,0.00013986,2]
[368684551,1751296235800,-594.33,0.00013986,2]
[368684552,1751296235810,-533.54,0.00013986,2]
[368684553,1751296235819,-967.1,0.00013986,2]
[368684554,1751296235828,-490.0,0.00013986,2]
[368684555,1751296235838,-558.37,0.00013986,2]
[368684556,1751296235847,-490.0,0.00013986,2]
[368684557,1751296235859,-490.0,0.00013986,2]
[368684558,1751296235869,-1741.19,0.00013986,2]
[368684559,1751296235879,-553.19,0.00013986,2]
[368684560,1751296235888,-789.95,0.00013986,2]
[368684561,1751296235897,-490.0,0.00013986,2]
[368684562,1751296235908,-803.27,0.00013986,2]
[368684563,1751296235918,-490.0,0.00013986,2]
[368684564,1751296235928,-490.0,0.00013986,2]
[368684565,1751296235938,-1847.85,0.00013986,2]
[368684566,1751296235948,-490.0,0.00013986,2]
[368684567,1751296235959,-490.0,0.00013986,2]
[368684568,1751296235968,-832.18,0.00013986,2]
[368684569,1751296235977,-771.01,0.00013986,2]
[368684570,1751296235987,-801.79,0.00013986,2]
[368684571,1751296235996,-490.0,0.00013986,2]
[368684572,1751296236005,-490.0,0.00013986,2]
[368684573,1751296236016,-490.0,0.00013986,2]
[368684574,1751296236025,-490.0,0.00013986,2]
[368684575,1751296236034,-490.0,0.00013986,2]
[368684576,1751296236045,-490.0,0.00013986,2]
[368684577,1751296236054,-1330.15,0.00013986,2]
[368684578,1751296236063,-588.71,0.00013986,2]
[368684579,1751296236073,-490.0,0.00013986,2]
[368684580,1751296236083,-490.0,0.00013986,2]
[368684581,1751296236092,-490.0,0.00013986,2]
[368684582,1751296236101,-519.61,0.00013986,2]
[368684583,1751296236111,-490.0,0.00013986,2]
[368684584,1751296236121,-490.0,0.00013986,2]
[368684585,1751296236131,-490.0,0.00013986,2]
[368684586,1751296236142,-756.51,0.00013986,2]
[368684587,1751296236151,-838.29,0.00013986,2]
[368684588,1751296236160,-1174.18,0.00013986,2]
[368684589,1751296236170,-490.0,0.00013986,2]
[368684590,1751296236179,-490.0,0.00013986,2]
[368684591,1751296236188,-427.39762938,0.00013986,2]
[368684592,1751296236198,-490.0,0.00013986,2]
[368684593,1751296236208,-491.8,0.00013986,2]
[368684594,1751296236217,-490.0,0.00013986,2]
[368684595,1751296236226,-694.99,0.00013986,2]
[368684596,1751296236236,-595.35,0.00013986,2]
[368684597,1751296236245,-996.2,0.00013986,2]
[368684598,1751296236255,-490.0,0.00013986,2]
[368684599,1751296236265,-1672.2,0.00013986,2]
[368684600,1751296236274,-490.0,0.00013986,2]
[368684601,1751296236283,-490.0,0.00013986,2]
[368684602,1751296236293,-490.0,0.00013986,2]
[368684603,1751296236303,-490.0,0.00013986,2]
[368684604,1751296236312,-897.89,0.00013986,2]
[368684605,1751296236322,-490.0,0.00013986,2]
[368684606,1751296236331,-490.0,0.00013986,2]
[368684607,1751296236339,-490.0,0.00013986,2]
[368684608,1751296236348,-755.72,0.00013986,2]
[368684609,1751296236356,-800.82,0.00013986,2]
[368684610,1751296236364,-672.86,0.00013986,2]
[368684611,1751296236372,-490.0,0.00013986,2]
[368684612,1751296236381,-587.08,0.00013986,2]
[368684613,1751296236389,-885.92,0.00013986,2]
[368684614,1751296236397,-1609.87,0.00013986,2]
[368684615,1751296236405,-490.0,0.00013986,2]
[368684616,1751296236416,-309.38830634,0.00013986,2]
[368684617,1751296236424,-641.69,0.00013986,2]
[368684618,1751296236432,-490.0,0.00013986,2]
[368684619,1751296236439,-490.0,0.00013986,2]
[368684620,1751296236449,-520.06,0.00013986,2]
[368684621,1751296236459,-490.0,0.00013986,2]
[368684622,1751296236468,-568.8,0.00013986,2]
[368684623,1751296236478,-490.0,0.00013986,2]
[368684624,1751296236488,-490.0,0.00013986,2]
[368684625,1751296236498,-606.21,0.00013986,2]
[368684626,1751296236508,-490.0,0.00013986,2]
[368684627,1751296236518,-490.0,0.00013986,2]
[368684628,1751296236528,-852.53,0.00013986,2]
[368684629,1751296236537,-490.0,0.00013986,2]
[368684630,1751296236547,-215.42848761,0.00013986,2]
[368684631,1751296236556,-490.0,0.00013986,2]
[368684632,1751296236565,-522.03169514,0.00013986,2]
[368684633,1751296236574,-490.0,0.00013986,2]
[368684634,1751296236584,-810.74,0.00013986,2]
[368684635,1751296236594,-578.16,0.00013986,2]
[368684636,1751296236603,-1201.29,0.00013986,2]
[368684637,1751296236613,-970.25,0.00013986,2]
[368684638,1751296236622,-490.0,0.00013986,2]
[368684639,1751296236632,-490.0,0.00013986,2]
[368684640,1751296236641,-492.86962583,0.00013986,2]
[368684641,1751296236651,-568.44,0.00013986,2]
[368684642,1751296236661,-490.0,0.00013986,2]
[368684643,1751296236671,-521.75,0.00013986,2]
[368684644,1751296236681,-490.0,0.00013986,2]
[368684645,1751296236691,-490.0,0.00013986,2]
[368684646,1751296236701,-581.88,0.00013986,2]
[368684647,1751296236711,-883.97,0.00013986,2]
[368684648,1751296236721,-490.0,0.00013986,2]
[368684649,1751296236731,-490.0,0.00013986,2]
[368684650,1751296236740,-490.0,0.00013986,2]
[368684651,1751296236750,-490.0,0.00013986,2]
[368684652,1751296236759,-490.0,0.00013986,2]
[368684653,1751296236768,-542.88,0.00013986,2]
[368684654,1751296236778,-490.0,0.00013986,2]
[368684655,1751296236788,-498.33,0.00013986,2]
[368684656,1751296236797,-490.0,0.00013986,2]
[368684657,1751296236806,-334.28337086,0.00013986,2]
[368684658,1751296236815,-490.0,0.00013986,2]
[368684659,1751296236825,-1218.94,0.00013986,2]
[368684660,1751296236834,-383.06362297,0.00013986,2]
[368684661,1751296236843,-490.0,0.00013986,2]
[368684662,1751296236853,-490.0,0.00013986,2]
[368684663,1751296236863,-531.04,0.00013986,2]
[368684664,1751296236875,-490.0,0.00013986,2]
[368684665,1751296236885,-648.97,0.00013986,2]
[368684666,1751296236895,-490.0,0.00013986,2]
[368684667,1751296236905,-490.0,0.00013986,2]
[368684668,1751296236915,-490.0,0.00013986,2]
[368684669,1751296236924,-490.0,0.00013986,2]
[368684670,1751296236934,-490.0,0.00013986,2]
[368684671,1751296236945,-612.85,0.00013986,2]
[368684672,1751296236955,-490.0,0.00013986,2]
[368684673,1751296236964,-543.51,0.00013986,2]
[368684674,1751296236974,-607.81,0.00013986,2]